[Event "27th CRO-chT Women 2018"]
[Site "Biograd"]
[Date "2018.09.09"]
[Round "3.10"]
[White "Medic, Mirjana"]
[Black "Berke, Ana"]
[Result "1-0"]
[ECO "A81"]
[WhiteElo "2167"]
[BlackElo "2170"]
[Annotator "ChessBase"]
[PlyCount "99"]
[EventDate "2018.09.08"]
[EventType "team-tourn"]
[EventCountry "CRO"]
[SourceTitle "playchess.com"]
[Source "ChessBase"]
[SourceQuality "1"]
[TimeControl "40/5400+30:1800+30"]

1. d4 {[%emt 0:00:30]} f5 {[%emt 0:00:30]} 2. g3 {[%emt 0:00:30]} Nf6 {[%emt 0:00:00]} 3. Bg2 {[%emt 0:00:30]} g6 {[%emt 0:00:00]} 4. Nf3 {[%emt 0:00:30]} Bg7 {[%emt 0:00:00]} 5. O-O {[%emt 0:00:00]} O-O {[%emt 0:00:00]} 6. b3 {[%emt 0:02:00]} d6 {[%emt 0:00:30]} 7. Bb2 {[%emt 0:00:00]} c6 {[%emt 0:00:30]} 8. Nbd2 {[%emt 0:01:00]} Qe8 {[%emt 0:03:30]} 9. Qc1 {[%emt 0:12:30]} h6 {[%emt 0:03:30]} 10. Re1 {[%emt 0:00:30]} Ne4 {[%emt 0:01:30]} 11. Nxe4 {[%emt 0:09:30]} fxe4 {[%emt 0:01:30]} 12. Nd2 {[%emt 0:00:30]} d5 {[%emt 0:05:30]} 13. f3 {[%emt 0:02:30]} exf3 {[%emt 0:03:30]} 14. exf3 {[%emt 0:02:30]} Na6 {[%emt 0:04:30]} 15. Re2 {[%emt 0:07:30]} Qf7 {[%emt 0:02:30]} 16. Nf1 {[%emt 0:05:30]} Kh7 {[%emt 0:03:30]} 17. Qd2 {[%emt 0:01:30]} Bd7 {[%emt 0:02:30]} 18. Rae1 {[%emt 0:00:30]} Bf6 {[%emt 0:03:30]} 19. Ne3 {[%emt 0:05:30]} Rae8 {[%emt 0:02:30]} 20. c4 {[%emt 0:01:30]} Nc7 {[%emt 0:02:30]} 21. Qa5 {[%emt 0:04:30]} Ne6 {[%emt 0:09:30]} 22. Qxa7 {[%emt 0:06:30]} dxc4 {[%emt 0:06:30]} 23. Nxc4 {[%emt 0:00:30]} Bc8 {[%emt 0:05:30]} 24. Ne5 {[%emt 0:05:30]} Qg7 {[%emt 0:00:30]} 25. f4 {[%emt 0:00:30]} Nc7 {[%emt 0:03:30]} 26. Qc5 {[%emt 0:01:30]} Bxe5 {[%emt 0:00:30]} 27. Rxe5 {[%emt 0:01:30]} e6 {[%emt 0:00:30]} 28. Qc2 {[%emt 0:04:30]} Qf7 {[%emt 0:03:30]} 29. h4 {[%emt 0:01:30]} Nd5 {[%emt 0:01:30]} 30. Be4 {[%emt 0:03:33]} Kg7 {[%emt 0:01:30]} 31. Bc1 {[%emt 0:00:37]} Rd8 {[%emt 0:02:30]} 32. Bf3 {[%emt 0:03:14]} Nf6 {[%emt 0:03:30]} 33. Bb2 {[%emt 0:00:27]} Nd5 {[%emt 0:03:30]} 34. Bg4 {[%emt 0:00:49]} Rfe8 {[%emt 0:02:30]} 35. Qe2 {[%emt 0:03:12]} Kf6 {[%emt 0:12:57]} 36. Ba3 {[%emt 0:02:42]} Qd7 {[%emt 0:01:46]} 37. Bb2 {[%emt 0:01:34]} h5 {[%emt 0:03:52]} 38. Bh3 {[%emt 0:01:24]} Kf7 {[%emt 0:01:04]} 39. Rg5 {[%emt 0:01:15]} Qe7 {[%emt 0:00:40]} 40. Bg2 {[%emt 0:00:00]} Qf6 {[%emt 0:00:00]} 41. Be4 {[%emt 0:06:13]} Rg8 {[%emt 0:02:11]} 42. Rf1 {[%emt 0:01:30]} Rde8 {[%emt 0:03:30]} 43. Rf2 {[%emt 0:00:30]} Rg7 {[%emt 0:01:30]} 44. Qd3 {[%emt 0:01:30]} Rh8 {[%emt 0:01:30]} 45. Ba3 {[%emt 0:01:30]} Rd8 {[%emt 0:00:30]} 46. Bc5 {[%emt 0:02:30]} Bd7 {[%emt 0:01:30]} 47. Bd6 {[%emt 0:02:30]} Rdg8 {[%emt 0:01:30]} 48. Be5 {[%emt 0:01:30]} Qe7 {[%emt 0:00:00]} 49. Bxg7 {[%emt 0:00:30]} Rxg7 {[%emt 0:00:00]} 50. Bxg6+ {[%emt 0:01:30]} 1-0

[Event "27th CRO-chT Women 2018"]
[Site "Biograd"]
[Date "2018.09.09"]
[Round "3.11"]
[White "Bogdanic, Katarina"]
[Black "Roklicer, Heike"]
[Result "1-0"]
[ECO "E09"]
[WhiteElo "1921"]
[BlackElo "2042"]
[Annotator "NA RC"]
[PlyCount "69"]
[EventDate "2018.09.08"]
[EventType "team-tourn"]
[EventCountry "CRO"]
[SourceTitle "playchess.com"]
[Source "ChessBase"]
[SourceQuality "1"]
[TimeControl "40/5400+30:1800+30"]

1. Nf3 {[%emt 0:00:30]} Nf6 {[%emt 0:01:30]} 2. c4 {[%emt 0:00:00]} e6 {[%emt 0:00:00]} 3. g3 {[%emt 0:00:00]} d5 {[%emt 0:00:00]} 4. d4 {[%emt 0:00:30]} c6 {[%emt 0:00:30]} 5. Qc2 {[%emt 0:00:00]} Be7 {[%emt 0:00:30]} 6. Bg2 {[%emt 0:00:00]} O-O {[%emt 0:01:30]} 7. O-O {[%emt 0:00:30]} b6 {[%emt 0:12:30]} 8. Nbd2 {[%emt 0:00:30]} Bb7 {[%emt 0:00:30]} 9. e4 {[%emt 0:02:30]} Nbd7 {[%emt 0:08:30]} 10. b3 {[%emt 0:01:30]} Rc8 {[%emt 0:04:30]} 11. Bb2 {[%emt 0:01:30]} b5 $146 {[%emt 0:13:30] E09: Katalanisch} ({Vorgänger:} 11... dxe4 12. Nxe4 c5 13. Nxf6+ Nxf6 14. Rad1 cxd4 15. Bxd4 Qc7 16. Ng5 h6 17. Bxf6 hxg5 18. Bxe7 Qxe7 19. Bxb7 Qxb7 20. Rd4 e5 {½-½ (49) Swiercz,D (2620)-Bruzon Batista,L (2659) Berlin 2015}) 12. Rac1 {[%emt 0:06:30]} bxc4 {[%emt 0:13:30]} 13. bxc4 {[%emt 0:00:30]} Ba6 {[%emt 0:04:30]} 14. Rfe1 {[%emt 0:02:30]} Bb4 {[%emt 0:04:30]} 15. Qa4 {[%emt 0:03:30]} Qa5 {[%emt 0:00:30]} 16. Qxa5 {[%emt 0:02:30]} Bxa5 {[%emt 0:00:30]} 17. Bc3 {[%emt 0:00:30]} Bxc3 {[%emt 0:06:30]} 18. Rxc3 {[%emt 0:00:00]} Bxc4 {[%emt 0:03:30]} 19. e5 {[%emt 0:03:00]} Ng4 {[%emt 0:06:15]} 20. Nxc4 {[%emt 0:01:30]} dxc4 {[%emt 0:00:02]} 21. Nd2 {[%emt 0:00:30]} Nb8 {[%emt 0:15:37]} (21... c5 $16 {was worth a try.}) 22. Nxc4 {[%emt 0:06:30]} Nh6 {[%emt 0:01:24]} 23. Nd6 {[%emt 0:02:30]} Rc7 {[%emt 0:00:21]} 24. Rec1 {[%emt 0:01:30]} g6 {[%emt 0:00:40]} 25. d5 {[%emt 0:07:30]} (25. Bxc6 $18 Nxc6 26. Rxc6 Rxc6 27. Rxc6) 25... exd5 {[%emt 0:00:22]} 26. Bxd5 {[%emt 0:01:30]} Nd7 {[%emt 0:00:42]} 27. e6 {[%emt 0:06:30]} ({Less strong is} 27. Bxc6 Nxe5 28. Bb5 Rxc3 $14) ({Not} 27. Rxc6 Rxc6 28. Bxc6 (28. Rxc6 Nxe5 29. Ra6 Rd8 $14) 28... Nxe5 $14) 27... fxe6 {[%emt 0:00:23]} 28. Bxe6+ {[%emt 0:00:00]} Kg7 {[%emt 0:00:16]} 29. Rxc6 {[%emt 0:00:00]} Rxc6 {[%emt 0:00:09]} 30. Rxc6 {[%emt 0:00:30]} Ne5 {[%emt 0:00:59]} 31. Rc7+ {[%emt 0:00:30]} Kh8 {[%emt 0:00:42]} 32. Kg2 $18 {[%emt 0:05:30]} a5 {[%emt 0:00:27]} 33. Ne4 {[%emt 0:00:30]} Nd3 {[%emt 0:00:34]} 34. Ng5 {[%emt 0:00:30]} Rxf2+ {[%emt 0:00:21]} 35. Kg1 {[%emt 0:00:30]} 1-0

[Event "27th CRO-chT Women 2018"]
[Site "Biograd"]
[Date "2018.09.09"]
[Round "3.12"]
[White "Smetisko, Marija"]
[Black "Golub, Nikolina"]
[Result "1/2-1/2"]
[ECO "C01"]
[WhiteElo "1900"]
[BlackElo "1839"]
[Annotator "NA"]
[PlyCount "56"]
[EventDate "2018.09.08"]
[EventType "team-tourn"]
[EventCountry "CRO"]
[SourceTitle "playchess.com"]
[Source "ChessBase"]
[SourceQuality "1"]
[TimeControl "40/5400+30:1800+30"]

1. e4 {[%emt 0:00:30]} e6 {[%emt 0:00:30]} 2. d4 {[%emt 0:00:30]} d5 {[%emt 0:00:00]} 3. exd5 {[%emt 0:00:30]} exd5 {[%emt 0:00:00]} 4. Nc3 {[%emt 0:00:30]} Nf6 {[%emt 0:00:30]} 5. Bg5 {[%emt 0:00:30]} Be7 {[%emt 0:00:00]} 6. Bd3 {[%emt 0:00:30]} Nc6 {[%emt 0:00:00]} 7. Nge2 {[%emt 0:01:30]} Nb4 {[%emt 0:00:30]} 8. Ng3 {[%emt 0:04:30]} Nxd3+ {[%emt 0:00:00]} 9. Qxd3 {[%emt 0:00:30]} h6 {[%emt 0:01:00]} 10. Bf4 {[%emt 0:07:30]} c6 {[%emt 0:02:30]} 11. Nf5 {[%emt 0:10:30]} Bxf5 {[%emt 0:05:30]} 12. Qxf5 {[%emt 0:00:30]} Qd7 {[%emt 0:01:30]} 13. Qxd7+ {[%emt 0:01:30]} Nxd7 {[%emt 0:00:30]} 14. O-O-O {[%emt 0:03:30]} O-O $11 {[%emt 0:01:30]} 15. Ne2 {[%emt 0:05:30]} Kh7 {[%emt 0:11:30]} 16. h4 {[%emt 0:07:30]} Nf6 {[%emt 0:03:30]} 17. f3 {[%emt 0:02:30]} h5 {[%emt 0:06:30]} 18. Ng3 {[%emt 0:06:30]} g6 {[%emt 0:00:30]} 19. Rde1 {[%emt 0:03:30]} Rfe8 {[%emt 0:02:30]} 20. Kd2 {[%emt 0:09:30]} Bf8 {[%emt 0:07:30]} 21. Re2 {[%emt 0:06:30]} Rxe2+ {[%emt 0:01:30]} 22. Nxe2 {[%emt 0:00:30]} Re8 {[%emt 0:00:30]} 23. Re1 {[%emt 0:03:30]} Kg8 {[%emt 0:04:30]} 24. Nc1 {[%emt 0:02:30]} Rxe1 {[%emt 0:01:30]} 25. Kxe1 {[%emt 0:00:00]} Nd7 {[%emt 0:00:30]} 26. Nd3 {[%emt 0:01:00]} Be7 {[%emt 0:05:30]} 27. g3 {[%emt 0:01:30]} Kg7 {[%emt 0:02:30]} 28. Kd2 {[%emt 0:00:30]} Nf8 {[%emt 0:04:30]} 1/2-1/2

[Event "27th CRO-chT Women 2018"]
[Site "Biograd"]
[Date "2018.09.10"]
[Round "4.1"]
[White "Ivekovic, Ana"]
[Black "Krivec, Jana"]
[Result "1/2-1/2"]
[ECO "A96"]
[WhiteElo "2118"]
[BlackElo "2185"]
[Annotator "NA"]
[PlyCount "52"]
[EventDate "2018.09.08"]
[EventType "team-tourn"]
[EventCountry "CRO"]
[SourceTitle "playchess.com"]
[Source "ChessBase"]
[SourceQuality "1"]
[TimeControl "40/5400+30:1800+30"]

1. d4 {[%emt 0:00:30]} f5 {[%emt 0:00:30]} 2. g3 {[%emt 0:00:00]} Nf6 {[%emt 0:00:00]} 3. Bg2 {[%emt 0:00:00]} e6 {[%emt 0:00:00]} 4. c4 {[%emt 0:01:30]} d6 {[%emt 0:00:30]} 5. Nc3 {[%emt 0:00:30]} Be7 {[%emt 0:00:00]} 6. Nf3 {[%emt 0:02:30]} O-O {[%emt 0:00:00] LiveBook: 172 Games} 7. O-O {[%emt 0:00:30]} Ne4 {[%emt 0:00:30]} 8. Nd2 {[%emt 0:02:30]} Nxc3 {[%emt 0:01:30]} 9. bxc3 {[%emt 0:00:00]} e5 {[%emt 0:09:30]} 10. Qb3 {[%emt 0:11:00]} Nc6 {[%emt 0:00:30]} 11. c5+ {[%emt 0:04:30]} Kh8 {[%emt 0:00:00]} 12. cxd6 {[%emt 0:02:30]} cxd6 {[%emt 0:00:00]} 13. Bb2 {[%emt 0:02:30]} Qc7 {[%emt 0:20:30]} 14. Qc4 {[%emt 0:14:30]} Qd8 $11 {[%emt 0:24:30]} 15. Bd5 {[%emt 0:16:30]} Bd7 {[%emt 0:10:30]} 16. a4 {[%emt 0:03:30]} Rc8 {[%emt 0:04:30]} 17. Qa2 {[%emt 0:01:30]} exd4 {[%emt 0:01:30]} 18. c4 {[%emt 0:09:30]} Bf6 {[%emt 0:04:54]} 19. Nf3 {[%emt 0:07:41]} Re8 {[%emt 0:06:46]} 20. Bxc6 {[%emt 0:08:22]} bxc6 {[%emt 0:00:14]} 21. Bxd4 {[%emt 0:02:41]} Bxd4 {[%emt 0:00:24]} 22. Nxd4 {[%emt 0:00:19]} Qf6 {[%emt 0:01:00]} 23. Rfd1 {[%emt 0:02:19]} f4 {[%emt 0:02:26]} 24. Qd2 {[%emt 0:00:48]} fxg3 {[%emt 0:02:08]} 25. hxg3 {[%emt 0:00:09]} Bg4 {[%emt 0:02:16]} 26. Qf4 {[%emt 0:02:46]} Qxf4 {[%emt 0:03:31]} 1/2-1/2

[Event "27th CRO-chT Women 2018"]
[Site "Biograd"]
[Date "2018.09.10"]
[Round "4.3"]
[White "Kuhar, Larisa"]
[Black "Starcevic, Andrea"]
[Result "*"]
[ECO "B85"]
[WhiteElo "1912"]
[BlackElo "1893"]
[Annotator "NA RC"]
[PlyCount "64"]
[EventDate "2018.09.08"]
[EventType "team-tourn"]
[EventCountry "CRO"]
[SourceTitle "playchess.com"]
[Source "ChessBase"]
[SourceQuality "1"]
[TimeControl "40/5400+30:1800+30"]

1. e4 {[%emt 0:00:30]} c5 {[%emt 0:01:30]} 2. Nf3 {[%emt 0:00:00]} e6 {[%emt 0:00:30]} 3. d4 {[%emt 0:00:00]} cxd4 {[%emt 0:00:00]} 4. Nxd4 {[%emt 0:00:30]} a6 {[%emt 0:00:00]} 5. Be2 {[%emt 0:00:00]} Qc7 {[%emt 0:00:30]} 6. O-O {[%emt 0:00:00]} Nc6 {[%emt 0:01:30]} 7. Be3 {[%emt 0:01:30]} Nf6 {[%emt 0:00:30]} 8. Nc3 {[%emt 0:00:30]} Be7 {[%emt 0:00:30]} 9. f4 {[%emt 0:01:30]} d6 {[%emt 0:00:00]} 10. Qe1 {[%emt 0:02:30]} O-O {[%emt 0:03:00]} 11. Qg3 {[%emt 0:00:30]} Re8 {[%emt 0:01:30]} 12. Rad1 {[%emt 0:10:30] B85: Sicilian Scheveningen: 6 Be2 a6, lines with early Be3} (12. Kh1 Rb8 13. Rad1 Nd7 14. f5 Nxd4 15. Bxd4 Bf8 16. Bh5 Ne5 17. f6 Ng6 18. e5 d5 19. Bxg6 hxg6 20. fxg7 Bxg7 21. Nxd5 Qxc2 22. Nf6+ Bxf6 23. exf6 e5 24. Qh4 g5 25. Qxg5+ {1-0 (25) Narayanan,S (2532)-Suarez Garcia,C (2472) Elgoibar 2017}) 12... Bf8 {[%emt 0:14:30]} 13. Bf3 {[%emt 0:12:30]} Nxd4 $146 {[%emt 0:22:30]} ({Predecessor:} 13... Bd7 14. Kh1 Rad8 15. Nb3 b5 16. a3 Bc8 17. Qf2 Nd7 18. Nd4 Bb7 19. Nxc6 Bxc6 {0-1 (88) Tzouganakis,P (1832)-Sanzhaev,D (2015) Sibenik 2007}) 14. Bxd4 {[%emt 0:00:30]} e5 {[%emt 0:00:30]} 15. Be3 {[%emt 0:03:30]} Be6 {[%emt 0:05:30]} 16. f5 $1 {[%emt 0:11:30]} Bc4 {[%emt 0:01:30]} 17. Rfe1 {[%emt 0:01:30]} b5 {[%emt 0:08:30]} 18. Bg5 {[%emt 0:12:30]} Kh8 {[%emt 0:02:30]} 19. a3 {[%emt 0:07:30]} a5 {[%emt 0:04:30]} 20. Bxf6 {[%emt 0:14:30]} gxf6 {[%emt 0:00:30]} 21. Bh5 {[%emt 0:00:30]} b4 {[%emt 0:03:30]} 22. Nd5 {[%emt 0:00:30]} Bxd5 {[%emt 0:00:30]} 23. Rxd5 {[%emt 0:00:30]} Bh6 {[%emt 0:01:30]} 24. Qd3 {[%emt 0:02:47]} Bf8 {[%emt 0:06:30]} 25. Re3 {[%emt 0:05:27]} bxa3 {[%emt 0:04:13]} 26. bxa3 {[%emt 0:02:48]} Rab8 {[%emt 0:01:21]} 27. Qc3 {[%emt 0:03:57]} Rb1+ {[%emt 0:02:53]} 28. Kf2 {[%emt 0:01:22]} Qb6 {[%emt 0:01:33]} 29. Qxa5 {[%emt 0:01:09]} Qb2 {[%emt 0:01:25]} 30. Qc3 {[%emt 0:03:46]} Qb6 {[%emt 0:07:23]} (30... Bh6 $17 31. Qxb2 Bxe3+ 32. Kxe3 Rxb2) 31. Qa5 $11 {[%emt 0:00:08]} (31. Bxf7 $2 Re7 $17) 31... Qb2 {[%emt 0:02:43]} 32. Qc3 {[%emt 0:02:53]} Qb6 {[%emt 0:01:12]} *

[Event "27th CRO-chT Women 2018"]
[Site "Biograd"]
[Date "2018.09.10"]
[Round "4.4"]
[White "Tomulic, Vesna"]
[Black "Dejanovic, Tereza"]
[Result "0-1"]
[ECO "B85"]
[WhiteElo "1837"]
[BlackElo "1815"]
[Annotator "NA"]
[PlyCount "66"]
[EventDate "2018.09.08"]
[EventType "team-tourn"]
[EventCountry "CRO"]
[SourceTitle "playchess.com"]
[Source "ChessBase"]
[SourceQuality "1"]
[TimeControl "40/5400+30:1800+30"]

1. e4 {[%emt 0:01:30]} c5 {[%emt 0:00:30]} 2. Nf3 {[%emt 0:01:30]} d6 {[%emt 0:00:00]} 3. d4 {[%emt 0:00:30]} cxd4 {[%emt 0:00:00]} 4. Nxd4 {[%emt 0:00:00]} Nf6 {[%emt 0:00:00]} 5. Nc3 {[%emt 0:00:00]} a6 {[%emt 0:00:00]} 6. Be3 {[%emt 0:00:30]} e6 {[%emt 0:00:30]} 7. Be2 {[%emt 0:00:30]} Be7 {[%emt 0:00:00]} 8. a4 {[%emt 0:00:30]} Nc6 {[%emt 0:04:00]} 9. Nb3 {[%emt 0:02:30]} b6 {[%emt 0:02:30]} 10. f4 {[%emt 0:01:30]} Bb7 {[%emt 0:03:30]} 11. Bf3 {[%emt 0:00:30]} Qc7 {[%emt 0:01:30]} 12. O-O {[%emt 0:01:30]} O-O {[%emt 0:00:30]} 13. g4 {[%emt 0:02:30]} Nd7 {[%emt 0:02:30] B85: Sicilian Scheveningen: 6 Be2 a6, lines with early Be3} (13... Rfe8 14. g5 Nd7 15. Bg2 Bf8 16. h4 Nb4 17. Qd2 Nc5 18. Nd4 d5 19. e5 Ne4 20. Nxe4 dxe4 21. c3 Nd3 {1-0 (45) Bernadskiy,V (2584)-Tanriverdi,E (2314) Ordu 2018}) 14. Qe1 {[%emt 0:01:30]} Nc5 {[%emt 0:01:30]} 15. Qf2 $146 {[%emt 0:05:30]} ({Predecessor:} 15. Nxc5 dxc5 16. Be2 Rad8 17. Bc4 Nd4 18. Rc1 Qc6 19. g5 b5 20. axb5 axb5 21. Bxd4 cxd4 22. Nd5 exd5 23. Bxd5 {0-1 (23) Balazec,L-Krejci,J (2185) Zlin 1996}) 15... g6 {[%emt 0:10:30]} 16. h4 {[%emt 0:16:30]} Qd8 {[%emt 0:07:30]} 17. g5 {[%emt 0:02:30]} h6 {[%emt 0:06:30]} (17... f6 $142) 18. Rad1 {[%emt 0:02:30]} ({Don't play} 18. gxh6 $6 Bxh4 19. Qh2 Qe7 $14) 18... Nd7 {[%emt 0:02:30]} 19. Nd2 {[%emt 0:08:30]} e5 {[%emt 0:06:30]} 20. Nc4 {[%emt 0:07:30]} exf4 {[%emt 0:01:30]} 21. Bxf4 {[%emt 0:02:30]} hxg5 {[%emt 0:01:30]} 22. Bxd6 {[%emt 0:01:30]} gxh4 {[%emt 0:02:30]} 23. Bg4 {[%emt 0:02:30]} Bxd6 {[%emt 0:04:30]} 24. Nxd6 {[%emt 0:01:30]} Nde5 {[%emt 0:06:30]} 25. Nxf7 {[%emt 0:07:30]} Qe7 {[%emt 0:19:57]} 26. Nh6+ {[%emt 0:05:30]} Kg7 {[%emt 0:00:51]} 27. Qe3 {[%emt 0:01:30]} Qc5 {[%emt 0:00:05]} 28. Qxc5 {[%emt 0:09:30]} bxc5 {[%emt 0:00:21]} 29. Nf5+ $19 {[%emt 0:03:13]} gxf5 {[%emt 0:00:09]} 30. Bxf5 {[%emt 0:00:11]} Nd4 {[%emt 0:01:09]} 31. Rf4 {[%emt 0:00:49]} Rf6 {[%emt 0:08:31]} 32. Kf2 {[%emt 0:01:32]} h3 {[%emt 0:01:46]} 33. Rg1+ {[%emt 0:01:06]} Kf7 {[%emt 0:00:15]} 0-1

[Event "27th CRO-chT Women 2018"]
[Site "Biograd"]
[Date "2018.09.10"]
[Round "4.5"]
[White "Rozman, Monika"]
[Black "Videnova, Iva"]
[Result "0-1"]
[ECO "A03"]
[WhiteElo "2037"]
[BlackElo "2336"]
[Annotator "NA"]
[PlyCount "98"]
[EventDate "2018.09.08"]
[EventType "team-tourn"]
[EventCountry "CRO"]
[SourceTitle "playchess.com"]
[Source "ChessBase"]
[SourceQuality "1"]
[TimeControl "40/5400+30:1800+30"]

1. f4 {[%emt 0:00:30]} c5 {[%emt 0:00:30]} 2. Nf3 {[%emt 0:00:00]} Nc6 {[%emt 0:00:30]} 3. g3 {[%emt 0:00:00]} d5 {[%emt 0:00:30]} 4. Bg2 {[%emt 0:00:30]} g6 {[%emt 0:01:30]} 5. d3 {[%emt 0:00:30]} Bg7 {[%emt 0:00:30]} 6. O-O {[%emt 0:00:30]} Nf6 {[%emt 0:00:30]} 7. Qe1 {[%emt 0:01:30]} d4 {[%emt 0:00:30] A03: Bird's Opening with 1...d5} (7... Qb6 8. Kh1 Nd4 9. Na3 Nxf3 10. Rxf3 h5 11. h3 Bf5 12. c4 d4 13. Rf1 O-O 14. Rb1 a5 15. Qf2 {½-½ (81) Nakamura,H (2775)-Fedoseev,V (2662) Dubai 2014}) 8. Na3 {[%emt 0:00:30]} Nd5 {[%emt 0:00:30]} 9. Bd2 {[%emt 0:03:30]} O-O {[%emt 0:02:30]} 10. c3 {[%emt 0:01:30]} e5 {[%emt 0:03:30]} 11. fxe5 {[%emt 0:06:30]} Nxe5 {[%emt 0:00:00]} 12. Nxe5 {[%emt 0:01:30]} Bxe5 {[%emt 0:00:00]} 13. Nc4 {[%emt 0:00:30]} Bg7 {[%emt 0:00:30]} 14. e4 {[%emt 0:00:30]} dxe3 {[%emt 0:01:30]} 15. Bxe3 {[%emt 0:05:30]} Nxe3 {[%emt 0:02:30]} 16. Qxe3 {[%emt 0:00:30]} Qc7 {[%emt 0:02:30]} 17. Qf4 $146 {[%emt 0:05:30]} ({Predecessor:} 17. Bd5 Bh3 {0-1 (29) Brenc,T (2075)-Medancic,R (2251) Rijeka 2009}) 17... Qxf4 {[%emt 0:02:30]} 18. Rxf4 {[%emt 0:01:30]} Rd8 {[%emt 0:00:30]} 19. Na5 {[%emt 0:03:30]} Bh6 {[%emt 0:06:30]} 20. Rff1 {[%emt 0:04:30]} Rxd3 {[%emt 0:03:30]} 21. Rad1 {[%emt 0:04:30]} Rxd1 {[%emt 0:01:30]} 22. Rxd1 {[%emt 0:00:30]} Bg4 {[%emt 0:00:30]} 23. Re1 {[%emt 0:01:30]} Rd8 {[%emt 0:02:30]} 24. Nxb7 {[%emt 0:03:30]} Rd2 {[%emt 0:01:30]} 25. Nxc5 {[%emt 0:13:30]} Rxb2 {[%emt 0:01:30]} 26. Ne4 {[%emt 0:00:00]} Be2 {[%emt 0:03:30]} 27. g4 {[%emt 0:03:00]} Be3+ {[%emt 0:04:30]} 28. Kh1 {[%emt 0:00:30]} Bf4 {[%emt 0:00:30]} 29. g5 {[%emt 0:04:30]} Rxa2 {[%emt 0:02:30]} 30. c4 {[%emt 0:02:30]} Rc2 {[%emt 0:00:30]} 31. c5 {[%emt 0:02:30]} h6 {[%emt 0:01:30]} 32. h4 {[%emt 0:01:30]} hxg5 {[%emt 0:00:00]} 33. hxg5 {[%emt 0:00:00]} Kg7 {[%emt 0:01:00]} 34. Kg1 {[%emt 0:10:27]} Bd3 {[%emt 0:04:30]} 35. Nf6 {[%emt 0:10:34]} Rxc5 {[%emt 0:05:30]} 36. Ne8+ {[%emt 0:00:16]} Kf8 {[%emt 0:00:30]} 37. Nf6 {[%emt 0:00:07]} Rc1 {[%emt 0:00:30]} 38. Rxc1 {[%emt 0:03:07]} Bxc1 {[%emt 0:00:00]} 39. Bd5 {[%emt 0:00:11]} Bf5 {[%emt 0:01:00]} 40. Kf2 {[%emt 0:00:00]} a5 $19 {[%emt 0:00:00]} 41. Bb3 {[%emt 0:01:48]} Ke7 {[%emt 0:04:00]} 42. Nd5+ {[%emt 0:03:30]} Kd6 {[%emt 0:00:30]} 43. Nc3 {[%emt 0:00:30]} Be6 {[%emt 0:00:30]} 44. Bc2 {[%emt 0:01:30]} Ke5 {[%emt 0:00:30]} 45. Ne4 {[%emt 0:00:00]} Bf5 {[%emt 0:00:30]} 46. Kf3 {[%emt 0:00:00]} a4 {[%emt 0:00:30]} 47. Bd3 {[%emt 0:01:30]} a3 {[%emt 0:00:30]} 48. Nf2 {[%emt 0:00:00]} a2 {[%emt 0:00:30]} 49. Bxf5 {[%emt 0:00:00]} Kxf5 {[%emt 0:00:30]} 0-1

[Event "27th CRO-chT Women 2018"]
[Site "Biograd"]
[Date "2018.09.10"]
[Round "4.7"]
[White "Ljikar, Tamara"]
[Black "Cvitan, Ena"]
[Result "1/2-1/2"]
[ECO "B13"]
[WhiteElo "1920"]
[BlackElo "2009"]
[Annotator "NA"]
[PlyCount "42"]
[EventDate "2018.09.08"]
[EventType "team-tourn"]
[EventCountry "CRO"]
[SourceTitle "playchess.com"]
[Source "ChessBase"]
[SourceQuality "1"]
[TimeControl "40/5400+30:1800+30"]

1. e4 {[%emt 0:00:30]} c6 {[%emt 0:00:30]} 2. d4 {[%emt 0:00:00]} d5 {[%emt 0:00:30]} 3. exd5 {[%emt 0:00:00]} cxd5 {[%emt 0:00:30]} 4. Bd3 {[%emt 0:00:30]} Nc6 {[%emt 0:01:30]} 5. c3 {[%emt 0:00:30]} Qc7 {[%emt 0:02:30]} 6. Qb3 {[%emt 0:01:30]} Nxd4 {[%emt 0:19:30]} 7. Qxd5 {[%emt 0:04:30]} Nc6 {[%emt 0:00:30]} 8. Bg5 {[%emt 0:15:30]} Nf6 {[%emt 0:12:30]} (8... h6 $17 9. Be3 Nf6) 9. Qb3 {[%emt 0:05:30]} Be6 {[%emt 0:07:30]} 10. Qc2 {[%emt 0:02:30]} Qe5+ {[%emt 0:08:30]} 11. Be3 {[%emt 0:00:00]} Bd5 {[%emt 0:04:30]} 12. Nf3 {[%emt 0:02:00]} Bxf3 {[%emt 0:05:30]} 13. gxf3 {[%emt 0:00:30]} O-O-O $11 {[%emt 0:00:30]} 14. Nd2 {[%emt 0:01:30]} Nd5 {[%emt 0:04:30]} 15. Be4 {[%emt 0:06:30]} e6 {[%emt 0:05:30]} 16. O-O-O {[%emt 0:04:30]} Be7 {[%emt 0:01:30]} 17. Kb1 {[%emt 0:07:30]} Qc7 {[%emt 0:02:30]} 18. Nb3 {[%emt 0:13:30]} g6 {[%emt 0:03:22]} 19. h4 {[%emt 0:04:30]} h5 {[%emt 0:01:31]} 20. Nd4 {[%emt 0:03:30]} Nxe3 {[%emt 0:01:24]} 21. fxe3 {[%emt 0:00:30]} Nxd4 {[%emt 0:00:21]} 1/2-1/2

[Event "27th CRO-chT Women 2018"]
[Site "Biograd"]
[Date "2018.09.10"]
[Round "4.8"]
[White "Vujnovic, Patricija"]
[Black "Blazeka, Ivana"]
[Result "*"]
[ECO "D02"]
[WhiteElo "2056"]
[BlackElo "1610"]
[Annotator "NA"]
[PlyCount "41"]
[EventDate "2018.09.08"]
[EventType "team-tourn"]
[EventCountry "CRO"]
[SourceTitle "playchess.com"]
[Source "ChessBase"]
[SourceQuality "1"]
[TimeControl "40/5400+30:1800+30"]

1. d4 {[%emt 0:00:30]} d5 {[%emt 0:00:30]} 2. Nf3 {[%emt 0:00:00]} Nf6 {[%emt 0:00:30]} 3. Bf4 {[%emt 0:00:00]} Bf5 {[%emt 0:03:30]} 4. e3 {[%emt 0:00:00]} e6 {[%emt 0:00:30]} 5. c4 {[%emt 0:00:00]} Be7 {[%emt 0:06:30]} 6. Qb3 {[%emt 0:00:30]} b6 {[%emt 0:03:30]} 7. Nc3 {[%emt 0:02:30]} O-O {[%emt 0:06:30]} 8. cxd5 {[%emt 0:03:30]} Nxd5 {[%emt 0:03:30]} 9. Nxd5 {[%emt 0:00:30]} exd5 {[%emt 0:01:30]} 10. Be2 {[%emt 0:03:30]} c5 {[%emt 0:11:30]} 11. Ne5 $15 {[%emt 0:04:30]} (11. dxc5 $11 bxc5 12. Rd1) 11... cxd4 {[%emt 0:05:30]} 12. exd4 {[%emt 0:00:30]} Bf6 {[%emt 0:09:30]} 13. Rc1 {[%emt 0:04:30]} Bg5 {[%emt 0:10:30]} 14. Bxg5 {[%emt 0:02:30]} Qxg5 {[%emt 0:00:00]} 15. O-O {[%emt 0:00:00]} Rd8 {[%emt 0:07:00]} 16. Rc7 {[%emt 0:06:00]} Be6 {[%emt 0:01:30]} 17. f4 {[%emt 0:00:30]} Qf5 {[%emt 0:06:30]} 18. Bd3 {[%emt 0:02:30]} Qf6 {[%emt 0:05:05]} 19. f5 {[%emt 0:02:30]} Bc8 {[%emt 0:02:29]} 20. Rxf7 {[%emt 0:01:30]} Qg5 {[%emt 0:02:00]} 21. f6 {[%emt 0:02:30]} *